bitfinex/quotes_ETHUSD_20251201
["timestamp","ask_amount","ask_price","bid_price","bid_amount"]
[1764551769666,0.002,2855.9,2855.8,8.48369543]
[1764551769893,0.002,2857.2,2856.4,0.1177]
[1764551770068,0.002,2857.2,2857.1,1.13109811]
[1764551770269,0.002,2857.2,2857.1,8.40270452]
[1764551770601,0.002,2857.2,2857.1,8.52040452]
[1764551770767,0.002,2857.2,2857.1,2.25112075]
[1764551770971,0.002,2857.2,2856.6,0.72559411]
[1764551771265,0.002,2857.2,2857.0,0.405504]
[1764551771463,0.002,2857.2,2857.1,30.32864066]
[1764551771690,0.002,2857.2,2857.1,31.24879811]
[1764551771878,0.002,2857.2,2857.1,20.30984711]
[1764551772075,0.002,2857.2,2857.1,23.37218876]
[1764551772298,0.002,2857.2,2857.1,23.70082942]
[1764551772494,0.002,2857.2,2857.1,10.01058242]
[1764551772682,0.002,2858.1,2857.2,1.13109811]
[1764551772891,0.002,2858.1,2857.4,39.17466746]
[1764551773184,0.002,2858.1,2857.4,23.51253346]
[1764551773399,0.002,2858.1,2857.4,46.77211612]
[1764551774276,0.002,2858.1,2857.4,16.77211612]
[1764551774478,0.002,2858.1,2857.7,0.405504]
[1764551774694,0.002,2858.1,2857.7,6.25323977]
[1764551774995,0.002,2858.1,2857.7,6.59793977]
[1764551775199,0.002,2858.1,2857.7,10.0972574]
[1764551775372,0.002,2858.1,2857.7,9.76861674]
[1764551775575,0.002,2858.1,2857.7,35.15635332]
[1764551775989,0.002,2858.1,2857.7,22.00495266]
[1764551776300,0.002,2858.1,2858.0,28.94553277]
[1764551776595,0.002,2858.1,2858.0,27.81235911]
[1764551776784,0.002,2858.1,2858.0,0.72559411]
[1764551776985,0.002,2858.1,2858.0,0.95259411]
[1764551777402,0.002,2858.1,2858.0,4.45154442]
[1764551777699,0.002,2858.1,2858.0,25.57621641]
[1764551778594,0.002,2858.1,2858.0,36.72018706]
[1764551778772,0.002,2858.1,2858.0,12.7363414]
[1764551778980,0.002,2858.1,2858.0,3.49895031]
[1764551779175,0.002,2858.1,2858.0,5.79223031]
[1764551779389,0.002,2858.1,2858.0,6.51782442]
[1764551779591,0.4714,2858.1,2857.3,0.32864066]
[1764551779786,0.1875,2857.9,2857.4,0.227]
[1764551779985,0.1875,2857.9,2857.5,0.03499562]
[1764551780176,0.4694,2857.8,2857.5,0.03499562]
[1764551780375,0.4694,2857.8,2856.5,3.50078767]
[1764551780610,0.4694,2857.8,2856.6,0.227]
[1764551780798,0.4694,2857.8,2856.7,3.5422]
[1764551780998,0.4694,2857.8,2856.9,0.72559411]
[1764551781310,0.4694,2857.8,2857.0,0.26200175]
[1764551781478,0.4694,2857.8,2857.2,0.72559411]
[1764551781679,0.4694,2857.8,2857.3,0.80756798]
[1764551781913,0.1875,2857.9,2857.4,0.227]
[1764551782116,0.1875,2857.9,2857.5,0.03499562]
[1764551782411,0.4694,2857.8,2857.6,0.227]
[1764551782713,0.002,2858.1,2857.6,0.2619944]
[1764551783616,0.002,2858.1,2857.8,0.72559411]
[1764551783801,0.002,2858.1,2857.9,1.15734542]
[1764551783981,0.002,2858.1,2858.0,0.227]
[1764551784377,0.4626,2858.1,2858.0,0.227]
[1764551784633,0.002,2858.1,2856.9,8.67902533]
[1764551784837,0.002,2858.1,2856.6,0.70871959]
[1764551784838,0.1854,2857.9,2857.2,4.586511]
[1764551784992,0.1854,2857.9,2857.3,0.72559411]
[1764551785184,0.1854,2857.9,2857.4,0.03499685]
[1764551785386,0.646,2857.9,2857.5,0.227]
[1764551785681,0.646,2857.9,2857.6,0.0349944]
[1764551785902,0.4606,2857.8,2857.6,0.0349944]
[1764551786112,0.4606,2857.8,2857.5,0.227]
[1764551786416,0.002,2858.1,2857.6,0.0349944]
[1764551786417,0.1854,2858.0,2857.6,0.0349944]
[1764551786783,0.4606,2857.9,2857.6,0.0349944]
[1764551787213,0.1854,2858.0,2857.6,0.0349944]
[1764551787582,0.1854,2858.0,2857.6,0.72559411]
[1764551787583,0.4606,2857.9,2857.6,0.72559411]
[1764551787783,0.4606,2857.9,2857.6,0.227]
[1764551788191,0.1854,2858.0,2857.7,0.03499317]
[1764551788714,0.1854,2858.0,2857.6,0.99158448]
[1764551788879,0.646,2858.0,2857.6,0.99158448]
[1764551789088,0.646,2858.0,2857.7,0.03499317]
[1764551789405,0.4606,2857.9,2857.6,0.227]
[1764551789788,0.4606,2857.9,2857.6,3.72643344]
[1764551790114,0.002,2858.1,2857.7,0.03499317]
[1764551790418,0.4606,2858.0,2857.8,0.03499195]
[1764551790712,0.002,2858.1,2857.8,0.03499195]
[1764551791211,0.1854,2857.9,2857.7,0.72559411]
[1764551791387,0.002,2858.1,2857.8,0.8324111]
[1764551791583,0.4606,2858.0,2857.6,3.87197717]
[1764551791783,0.4606,2858.0,2856.6,4.20928308]
[1764551791784,0.4606,2858.0,2856.7,12.044131]
[1764551792093,0.1854,2857.9,2856.8,0.72559411]
[1764551792281,0.53215724,2857.9,2856.8,9.30625]
[1764551792615,0.1854,2856.9,2856.8,5.56020411]
[1764551792815,0.1854,2856.9,2856.8,0.227]
[1764551793020,0.1854,2857.0,2856.8,0.98481272]
[1764551793218,0.1854,2857.3,2856.8,0.98481272]
[1764551793415,0.1854,2857.3,2856.8,1.71040683]
[1764551793608,0.1854,2856.9,2856.8,5.21082688]
[1764551793808,0.646,2857.9,2857.0,0.72559411]
[1764551794012,0.646,2857.9,2856.9,0.72559411]
[1764551794186,0.4606,2857.8,2857.0,1.56770828]
[1764551794390,0.4606,2857.8,2857.0,1.89634894]
[1764551794591,0.4606,2857.8,2857.1,0.32864066]
[1764551794789,0.4606,2857.8,2857.2,0.2619993]
[1764551795016,0.4606,2857.8,2857.2,0.227]
[1764551795225,0.4606,2857.8,2856.9,0.72559411]
[1764551795393,0.34675724,2857.7,2857.0,0.26200175]
[1764551795594,0.4606,2857.8,2857.1,3.5000525]
[1764551795786,0.4606,2857.7,2857.1,7.000105]
[1764551795990,0.4606,2857.7,2857.2,0.76059341]
[1764551797437,0.1854,2857.9,2857.2,0.76059341]
[1764551797588,0.1854,2857.9,2857.4,6.99937004]
[1764551797792,0.1854,2857.9,2857.5,0.26199562]
[1764551797998,0.1854,2857.9,2857.6,0.0349944]
[1764551798230,0.646,2857.9,2857.5,0.95259411]
[1764551798389,0.646,2857.9,2857.6,0.0349944]
[1764551798390,0.1854,2857.9,2857.6,0.0349944]
[1764551798587,0.1854,2857.9,2857.3,1.15893916]
[1764551798588,0.4606,2857.8,2857.3,1.15893916]
[1764551798785,0.4606,2857.8,2857.4,0.227]
[1764551799050,0.4606,2857.8,2856.8,7.0008401]
[1764551799324,0.34675724,2857.5,2856.9,0.227]
[1764551799688,0.4606,2857.5,2857.0,3.500175]
[1764551800026,0.4606,2857.5,2857.0,7.00035]
[1764551800344,0.4606,2857.5,2857.0,3.500175]
[1764551800514,0.4606,2857.5,2857.1,0.03500052]
[1764551800840,0.80735724,2857.5,2857.1,0.03500052]
[1764551801120,0.4606,2857.5,2856.9,7.22756539]
[1764551801421,0.1854,2857.9,2857.0,0.03500175]
[1764551801723,0.4606,2857.4,2857.2,6.99986]
[1764551802020,0.4606,2857.4,2857.2,3.49993]
[1764551802223,0.002,2857.8,2857.3,0.95259411]
[1764551802593,0.002,2857.8,2857.6,3.82717766]
[1764551802796,0.002,2857.8,2857.7,6.56724111]
[1764551803015,0.002,2857.8,2857.7,6.34024111]
[1764551803214,0.002,2857.8,2857.7,2.682548]
[1764551803417,0.002,2857.8,2857.7,5.35683442]
[1764551803620,0.002,2857.8,2857.7,8.20456205]
[1764551803822,0.002,2857.8,2857.7,6.81446605]
[1764551803996,0.002,2857.8,2857.7,4.45191174]
[1764551804560,0.002,2857.8,2857.7,4.22491174]
[1764551804760,0.4626,2857.8,2857.3,6.99956448]
[1764551804962,0.4626,2857.8,2857.0,0.001]
[1764551804963,0.80935724,2857.8,2857.0,0.001]
[1764551805139,0.4626,2857.8,2857.0,3.53617675]
[1764551805340,0.4626,2857.8,2857.0,7.03635175]
[1764551805341,0.4606,2857.7,2857.0,7.03635175]
[1764551805533,0.4606,2857.7,2857.0,8.07772352]
[1764551806238,0.4606,2857.7,2857.0,4.57754852]
[1764551806439,0.4606,2857.7,2857.0,10.53652675]
[1764551806637,0.002,2857.8,2857.0,7.00135]
[1764551806834,0.002,2857.8,2857.0,10.501525]
[1764551807456,0.4626,2857.8,2857.0,7.00135]
[1764551807632,0.4626,2857.8,2857.3,0.72559411]
[1764551807834,0.4626,2857.8,2857.4,0.227]
[1764551808055,0.4626,2857.8,2857.4,0.26199685]
[1764551809762,0.4626,2857.8,2857.5,6.9991251]
[1764551809934,0.002,2857.8,2857.5,6.9991251]
[1764551810135,0.002,2857.8,2857.5,3.49956255]
[1764551810335,0.4626,2857.8,2857.5,3.49956255]
[1764551810560,0.4626,2857.8,2857.5,6.9991251]
[1764551810869,0.002,2857.8,2857.5,7.79429702]
[1764551811281,0.002,2857.8,2857.6,0.72559411]
[1764551811844,0.002,2857.8,2857.7,0.72559411]
[1764551813838,0.002,2857.8,2857.7,4.34261174]
[1764551814040,0.002,2857.8,2857.7,8.14250257]
[1764551814338,0.002,2857.8,2857.7,9.46892053]
[1764551814730,0.002,2857.8,2857.7,8.69514587]
[1764551814932,0.002,2857.8,2857.7,8.90608653]
[1764551815177,0.002,2857.8,2857.7,8.57744587]
[1764551815406,0.002,2857.8,2857.7,4.22491174]
[1764551815662,0.002,2857.8,2857.7,4.45191174]
[1764551816173,0.9529,2857.8,2857.3,0.226]
[1764551816329,0.4729,2857.7,2857.4,0.03499685]
[1764551816532,0.9509,2857.7,2857.4,0.03499685]
[1764551816739,0.4729,2857.5,2857.4,0.03499685]
[1764551816950,0.4729,2857.5,2857.3,0.226]
[1764551817252,0.9509,2857.4,2857.2,0.226]
[1764551817770,0.9509,2857.3,2857.2,0.226]
[1764551818135,0.9509,2857.3,2857.2,3.72593]
[1764551818842,0.9509,2857.3,2857.0,0.001]
[1764551819188,0.002,2857.8,2857.0,0.001]
[1764551819189,0.4729,2857.1,2857.0,3.501175]
[1764551819492,0.4729,2857.1,2857.0,0.001]
[1764551819790,0.9509,2857.1,2857.0,3.501175]
[1764551820096,0.82475724,2857.6,2857.0,4.22393168]
[1764551820295,0.82475724,2857.6,2857.0,0.001]
[1764551820496,0.4729,2857.1,2857.0,0.001]
[1764551820700,0.478,2857.5,2857.0,0.001]
[1764551820995,0.002,2857.8,2857.0,0.001]
[1764551821162,0.002,2857.8,2857.1,7.016745]
[1764551821366,0.002,2857.8,2857.3,2.83234911]
[1764551821579,0.002,2857.8,2857.4,0.226]
[1764551821774,0.4729,2857.1,2857.0,0.001]
[1764551821992,0.48,2857.8,2857.0,7.2273187]
[1764551822198,0.48,2857.8,2857.1,0.03500052]
[1764551822497,0.002,2857.8,2857.2,9.280791]
[1764551822698,0.002,2857.8,2857.1,1.48682655]
[1764551822699,0.002,2857.8,2857.1,1.45182603]
[1764551823063,0.002,2857.8,2857.3,0.72559411]
[1764551823368,0.002,2857.8,2857.4,0.226]
[1764551823773,0.002,2857.8,2857.5,0.03499562]
[1764551823985,0.48,2857.8,2857.5,3.49956255]
[1764551824194,0.48,2857.8,2857.6,0.37255626]
[1764551824400,0.48,2857.8,2857.5,3.49956255]
[1764551824597,0.48,2857.8,2857.5,6.9991251]
[1764551824766,0.48,2857.8,2857.5,3.49956255]
[1764551825166,0.48,2857.8,2857.6,0.226]
[1764551825369,0.002,2857.8,2857.6,0.2609944]
[1764551825591,0.002,2857.8,2857.7,0.72601195]
[1764551825797,0.1854,2858.5,2857.7,0.72601195]
[1764551825798,0.188,2859.5,2858.1,0.405504]
[1764551826001,0.478,2860.1,2858.4,0.72559411]
[1764551826311,0.188,2860.5,2859.6,0.32864066]
[1764551826470,0.188,2860.5,2859.7,0.226]
[1764551827285,0.666,2860.5,2859.7,0.226]
[1764551827672,0.50858313,2860.3,2859.8,2.609139]
[1764551827886,0.03058313,2860.3,2859.7,0.226]
[1764551828121,0.03058313,2860.3,2859.9,0.72559411]
[1764551828280,0.03058313,2860.3,2859.9,1.52010389]
[1764551829074,0.03058313,2860.3,2859.9,21.80243189]
[1764551829405,0.03058313,2860.3,2859.9,21.45867255]
[1764551829625,0.03058313,2860.3,2859.9,21.86417655]
[1764551829778,0.03058313,2860.3,2859.9,11.51740855]
[1764551830173,0.03058313,2860.3,2859.9,7.28022564]
[1764551830429,0.03058313,2860.3,2859.9,4.22221986]
[1764551830724,0.03058313,2860.3,2858.7,2.323431]
[1764551830725,0.34675724,2859.9,2858.7,2.323431]
[1764551830875,0.188,2859.8,2858.8,0.226]
[1764551831078,0.666,2859.8,2858.8,0.226]
[1764551831276,0.188,2859.8,2858.8,0.226]
[1764551831519,0.188,2859.8,2859.0,0.32864066]
[1764551831687,0.188,2859.8,2858.9,18.18061566]
[1764551832014,0.188,2859.8,2858.8,0.226]
[1764551832015,0.188,2859.8,2859.1,0.72559411]
[1764551832191,0.666,2859.8,2859.2,0.226]
[1764551832385,0.00851482,2860.0,2859.3,3.6888]
[1764551832586,3.98301831,2860.0,2859.2,0.226]
[1764551832786,0.34675724,2859.5,2859.2,0.226]
[1764551833004,3.98301831,2860.0,2858.5,4.19454915]
[1764551833005,0.34675724,2859.6,2858.5,4.19454915]
[1764551833179,0.188,2858.9,2858.8,0.226]
[1764551833819,0.478,2859.5,2858.8,0.226]
[1764551834022,0.188,2858.9,2857.9,0.32864066]
[1764551834264,0.188,2858.9,2858.1,11.357831]
[1764551834561,0.188,2858.9,2857.7,7.72464721]
[1764551834562,0.82475724,2858.8,2858.2,0.03498705]
[1764551834719,0.82475724,2858.8,2857.8,0.72559411]
[1764551834924,0.478,2858.7,2857.9,1.21755589]
[1764551835543,0.478,2858.7,2857.8,0.72559411]
[1764551836022,0.478,2858.7,2857.9,0.03499072]
[1764551836023,0.53475724,2858.6,2857.9,0.03499072]
[1764551836220,0.53475724,2858.6,2858.0,3.49895031]
[1764551836434,0.666,2858.6,2858.1,0.03498827]
[1764551836861,0.478,2858.5,2858.2,0.03498705]
[1764551837228,0.478,2858.5,2858.1,0.03498827]
[1764551837459,0.188,2858.6,2858.2,0.70338889]
[1764551837872,0.188,2859.2,2858.4,0.72559411]
[1764551838078,0.188,2859.2,2858.7,0.72559411]
[1764551838235,0.188,2859.2,2858.9,0.72559411]
[1764551838435,0.188,2859.2,2858.9,0.95159411]
[1764551838666,0.188,2859.2,2859.0,0.03497726]
[1764551839218,0.188,2859.2,2858.9,0.95159411]
[1764551839219,0.666,2859.2,2858.9,0.95159411]
[1764551839338,1.01275724,2859.2,2858.6,0.226]
[1764551839679,0.666,2859.2,2858.7,0.03498093]
[1764551839862,0.188,2858.8,2858.7,0.03498093]
[1764551840176,0.188,2858.8,2858.6,0.26098215]
[1764551840487,0.666,2858.8,2858.6,3.72414393]
[1764551840840,0.53475724,2859.2,2858.6,4.44992217]
[1764551841076,0.188,2859.2,2858.2,0.70338889]
[1764551841245,0.188,2859.2,2858.4,0.72559411]
[1764551841448,0.478,2859.1,2858.5,2.98894911]
[1764551841650,0.478,2859.1,2858.6,0.03498215]
[1764551841880,0.41601882,2860.0,2858.6,0.03498215]
[1764551841881,0.01051482,2860.0,2858.7,0.226]
[1764551842108,0.478,2859.8,2858.9,8.296614]
[1764551842319,0.478,2859.8,2859.1,6.99520828]
[1764551842480,0.01051482,2860.0,2859.3,7.049125]
[1764551842813,0.01051482,2860.0,2859.4,0.72559411]
[1764551842966,0.01051482,2860.0,2859.5,2.191678]
[1764551843312,0.01051482,2860.0,2859.6,8.426013]
[1764551843527,0.01051482,2860.0,2859.7,6.727013]
[1764551843727,0.4678,2859.4,2859.1,0.72559411]
[1764551844015,0.4678,2859.4,2859.2,0.03497481]
[1764551844219,0.4678,2859.4,2859.1,0.72559411]
[1764551844423,0.477,2859.7,2859.2,0.03497481]
[1764551844587,0.01051482,2860.0,2859.4,12.678382]
[1764551844768,0.01051482,2860.0,2859.5,0.226]
[1764551844970,0.477,2859.9,2859.1,0.17847535]
[1764551845213,0.4879,2859.2,2859.0,0.226]
[1764551846073,0.01051482,2860.0,2859.2,14.236747]
[1764551846298,0.01051482,2860.0,2859.4,2.91443]
[1764551846500,0.01051482,2860.0,2859.5,4.098492]
[1764551846709,0.01051482,2860.0,2859.5,1.48165705]
[1764551847283,0.83427206,2860.0,2859.5,1.48165705]
[1764551847482,0.83427206,2860.0,2859.1,0.226]
[1764551847718,0.477,2859.9,2859.1,0.226]
[1764551847916,0.477,2859.9,2859.3,0.72559411]
[1764551848215,0.82375724,2859.9,2859.2,0.72559411]
[1764551848430,0.82375724,2859.9,2859.3,6.99471898]
[1764551848628,0.82375724,2859.9,2859.3,3.49735949]
[1764551849008,0.82375724,2859.9,2859.3,6.99471898]
[1764551849365,0.477,2859.9,2859.3,7.79284777]
[1764551849567,0.4879,2859.4,2858.0,0.001]
[1764551849736,0.188,2858.5,2858.0,0.001]
[1764551849933,0.34675724,2858.4,2858.0,0.001]
[1764551850151,0.188,2858.5,2858.0,0.001]
[1764551850458,0.477,2858.4,2858.0,0.227]
[1764551851636,0.477,2858.4,2858.0,3.72594901]
[1764551852044,0.477,2858.4,2858.0,0.001]
[1764551852754,3.97547671,2858.4,2858.0,0.001]
[1764551853091,0.72559411,2858.3,2858.0,0.001]
[1764551853291,0.34675724,2858.1,2857.7,0.001]
[1764551853597,0.405504,2858.1,2857.7,0.001]
[1764551853882,0.34675724,2857.6,2857.4,0.001]
[1764551854081,0.477,2858.0,2857.4,0.001]
[1764551854295,0.82375724,2858.0,2857.4,0.001]
[1764551854488,0.477,2858.0,2857.4,1.11517164]
[1764551854664,0.477,2858.4,2857.4,1.30617479]
[1764551855892,0.477,2858.4,2858.0,0.001]
[1764551856285,0.188,2858.5,2858.0,0.001]
[1764551856487,0.4879,2858.1,2858.0,0.001]
[1764551856863,1.31165724,2858.1,2858.0,0.001]
[1764551857397,1.31165724,2858.1,2857.7,0.001]
[1764551857584,0.83465724,2857.8,2857.7,0.001]
[1764551857892,0.34675724,2857.8,2857.7,0.001]
[1764551858201,0.82375724,2857.8,2857.7,0.001]
[1764551858501,4.32295242,2857.8,2857.7,0.001]
[1764551859354,5.68005053,2857.8,2857.7,0.001]
[1764551859521,5.68005053,2857.8,2855.3,4.20977909]
[1764551859522,0.53475724,2856.8,2855.3,4.20977909]
[1764551859795,0.188,2855.8,2855.3,7.00450834]
[1764551860394,0.188,2855.8,2855.2,0.226]
[1764551860613,0.188,2855.8,2855.2,7.2307594]
[1764551860901,0.82375724,2856.0,2855.3,0.76986852]
[1764551861106,0.188,2856.1,2855.3,1.49546263]
[1764551861397,0.188,2856.1,2855.3,1.46044005]
[1764551861619,0.188,2856.1,2855.4,0.03502136]
[1764551861892,0.665,2856.1,2855.3,1.46044005]
[1764551862104,0.188,2856.1,2855.4,0.90414131]
[1764551862464,0.188,2856.1,2855.5,7.0040273]
[1764551863268,0.72559411,2857.0,2855.5,10.50604095]
[1764551863269,0.34675724,2856.9,2855.5,10.50604095]
[1764551863484,1.07235135,2856.9,2855.6,1.05423477]
[1764551863678,1.07235135,2856.9,2855.7,0.226]
[1764551863679,4.16542441,2856.8,2855.7,0.226]
[1764551863968,0.188,2855.7,2855.5,3.50201365]
[1764551864414,0.188,2855.7,2855.3,0.72559411]
[1764551864615,0.188,2855.9,2855.3,0.72559411]
[1764551864821,0.188,2855.9,2855.4,0.03502136]
[1764551865038,0.477,2855.8,2855.2,7.00476322]
[1764551865251,0.82375724,2855.8,2855.2,3.50238161]
[1764551865620,0.477,2855.7,2855.2,7.00476322]
[1764551865821,0.477,2855.7,2855.2,3.50238161]
[1764551866061,0.477,2855.7,2854.6,3.50304081]
[1764551866062,0.34675724,2855.6,2854.6,7.00623554]
[1764551866227,0.34675724,2855.3,2854.7,0.03502995]
[1764551866430,0.188,2855.9,2854.6,3.50311777]
[1764551866431,0.477,2855.6,2854.6,3.50311777]
[1764551866631,0.477,2855.6,2854.6,7.00623554]
[1764551866940,3.50121773,2856.2,2854.6,7.00623554]
[1764551866941,3.50003691,2857.2,2854.9,0.72559411]
[1764551867146,1.01175724,2856.8,2855.3,17.20357066]
[1764551867314,1.01175724,2856.8,2855.6,1.05423477]
[1764551867636,0.477,2856.7,2855.7,0.226]
[1764551867841,0.34675724,2856.6,2855.8,0.03501645]
[1764551868238,0.477,2856.5,2855.7,0.226]
[1764551868560,0.34675724,2856.7,2855.8,0.03501645]
[1764551868727,0.82375724,2856.7,2855.8,0.03501645]
[1764551869766,0.53475724,2857.0,2856.0,3.37097]
[1764551870062,0.53475724,2857.0,2856.1,0.03501277]
[1764551870471,0.53475724,2857.0,2856.3,7.0020656]
[1764551870472,0.188,2857.0,2856.3,7.0020656]
[1764551870623,0.188,2857.0,2856.4,0.0350091]
[1764551871057,0.188,2857.0,2856.3,0.03501032]
[1764551871226,0.188,2857.0,2856.4,0.72632904]
[1764551871769,0.477,2857.3,2856.4,0.72632904]
[1764551871770,0.82375724,2857.3,2856.4,0.72632904]
[1764551872077,0.188,2856.9,2856.2,3.72712765]
[1764551872233,0.188,2856.9,2856.2,7.22828303]
[1764551872861,0.188,2856.9,2856.2,10.72943841]
[1764551873648,3.49945181,2857.6,2856.2,10.72943841]
[1764551873649,3.68673937,2858.2,2856.8,0.1187]
[1764551873980,0.4755,2857.9,2856.8,0.226]
[1764551874466,4.32136099,2857.9,2856.9,7.00059504]
[1764551874830,0.4755,2857.8,2856.8,0.226]
[1764551875024,0.34675724,2857.3,2856.8,3.72636895]
[1764551875235,0.4755,2857.8,2856.8,7.226789]
[1764551875437,0.002,2857.2,2856.8,7.226789]
[1764551875755,0.002,2857.2,2856.8,10.72720905]
[1764551876157,0.002,2857.2,2856.8,11.05584971]
[1764551876465,0.002,2857.2,2857.1,10.0229555]
[1764551876651,0.002,2857.2,2857.1,9.34668727]
[1764551876854,0.002,2857.2,2857.1,21.94069572]
[1764551877360,0.002,2857.2,2857.1,14.88262372]
[1764551877568,0.4775,2859.2,2857.4,1.13109811]
[1764551877724,0.4775,2859.2,2858.2,1.05423477]
[1764551877928,0.4775,2859.2,2858.3,0.226]
[1764551878359,0.4775,2859.2,2858.4,6.99692134]
[1764551878663,0.34675724,2858.8,2857.9,3.4990656]
[1764551878883,0.34675724,2858.8,2857.9,6.99813834]
[1764551879157,0.4755,2858.7,2857.9,6.99813834]
[1764551879393,0.4755,2858.7,2857.9,3.4990656]
[1764551879565,0.34675724,2858.6,2857.9,3.4990656]
[1764551879862,0.34675724,2858.6,2857.9,6.99813834]
[1764551880032,0.34675724,2858.5,2857.9,6.99813834]
[1764551880768,0.34675724,2858.5,2857.7,0.226]
[1764551880941,0.82225724,2858.4,2857.7,0.226]
[1764551881146,0.82225724,2858.4,2857.7,7.22462434]
[1764551881441,0.4755,2858.4,2857.7,7.22462434]
[1764551881660,0.82225724,2858.4,2857.7,3.72528568]
[1764551881853,0.4755,2858.4,2857.7,3.72529185]
[1764551882059,0.82225724,2858.4,2857.7,3.72529185]
[1764551882566,0.82225724,2858.4,2857.7,7.22460948]
[1764551882567,0.34675724,2858.4,2857.7,7.22460948]
[1764551882768,0.4755,2858.3,2857.7,7.22460948]
[1764551882929,0.1806,2857.8,2857.7,0.226]
[1764551883339,0.1806,2857.8,2857.7,3.72531763]
[1764551883562,0.1806,2857.8,2857.7,0.226]
[1764551883864,0.1806,2857.8,2857.4,0.226]
[1764551884175,1.46795724,2857.8,2857.5,0.03499562]
[1764551884406,0.1806,2857.8,2857.5,0.03499562]
[1764551884551,0.1806,2857.8,2857.6,3.49944008]
[1764551884941,0.1806,2857.8,2857.6,0.0349944]
[1764551885130,0.1806,2857.8,2857.4,0.226]
[1764551885455,0.4651,2857.5,2857.1,3.50002038]
[1764551885658,0.4651,2857.5,2857.1,3.72602038]
[1764551885855,0.4755,2857.4,2857.1,0.226]
[1764551886247,0.34675724,2857.6,2857.1,0.226]
[1764551886636,0.1806,2857.8,2857.2,3.49993]
[1764551886837,0.1806,2858.0,2857.3,0.03499807]
[1764551887046,1.00285724,2858.0,2857.3,0.03499807]
[1764551887451,0.34675724,2857.9,2857.3,0.03499807]
[1764551887652,1.42709411,2858.5,2857.3,0.03499807]
[1764551887871,1.42709411,2858.5,2857.2,0.72559411]
[1764551887872,0.4755,2858.4,2857.2,0.72559411]
[1764551888261,0.34675724,2858.0,2857.2,0.72559411]
[1764551888450,0.4755,2858.4,2857.1,7.22606957]
[1764551888650,3.67969567,2857.9,2857.1,7.22606957]
[1764551888885,0.34675724,2857.6,2857.1,7.22606957]
[1764551889458,0.75226124,2858.8,2857.5,0.1187]
[1764551889657,0.4755,2858.6,2857.6,0.2609944]
[1764551889973,0.34675724,2858.3,2857.6,0.226]
[1764551890280,0.03058313,2860.3,2857.6,0.226]
[1764551890606,0.03058313,2860.3,2858.5,0.72559411]
[1764551890749,0.03058313,2860.3,2858.4,17.044223]
[1764551890750,0.48401482,2860.0,2858.7,0.72559411]
[1764551890946,0.4755,2859.6,2858.7,0.72559411]
[1764551892182,0.1806,2858.8,2858.2,0.226]
[1764551892688,0.34675724,2858.6,2858.2,0.226]
[1764551892859,0.34675724,2858.6,2858.2,3.72468233]
[1764551893063,0.82225724,2858.6,2858.2,3.72468233]
[1764551893363,3.97374848,2858.6,2857.4,6.99937004]
[1764551893564,0.4755,2858.5,2857.5,0.03499562]
[1764551893771,0.4755,2858.5,2857.3,0.001]
[1764551893772,0.1806,2857.5,2857.3,0.001]
[1764551893976,0.34675724,2857.6,2857.3,0.001]
[1764551894177,0.1806,2857.9,2857.3,0.001]
[1764551894495,0.1806,2857.9,2857.3,3.53580273]
[1764551894804,0.52735724,2857.9,2857.3,3.53580273]
[1764551894953,1.20109411,2858.5,2857.4,0.03499685]
[1764551895149,1.20109411,2858.5,2857.5,0.03499562]
[1764551895397,0.34675724,2858.2,2857.3,7.03557251]
[1764551895554,0.34675724,2858.2,2857.3,7.00057444]
[1764551895755,0.1806,2858.9,2857.4,0.72559411]
[1764551895993,0.4755,2858.8,2857.5,0.03499562]
[1764551896292,0.34675724,2858.7,2857.6,0.1187]
[1764551896455,0.34675724,2858.7,2857.7,0.26099317]
[1764551896868,0.34675724,2858.7,2857.8,6.99839036]
[1764551897070,0.4755,2858.6,2857.8,3.49919518]
[1764551897274,0.82225724,2858.6,2857.8,3.49919518]
[1764551897474,0.82225724,2858.6,2857.9,0.03499072]
[1764551897792,0.34675724,2858.3,2857.7,0.226]
[1764551897975,0.4755,2858.3,2857.7,3.72524049]
[1764551898467,0.34675724,2858.7,2857.8,0.03499195]
[1764551898659,0.4755,2858.7,2857.7,7.22455812]
[1764551898877,0.34675724,2858.5,2857.8,0.03499195]
[1764551899376,4.50074947,2858.9,2857.8,0.03499195]
[1764551899570,4.50074947,2858.9,2857.7,7.22455812]
[1764551899571,0.34675724,2858.6,2857.7,7.22455812]
[1764551899762,0.34675724,2858.5,2857.7,7.22455812]
[1764551899969,7.17638446,2858.9,2857.7,7.22455812]
[1764551899970,7.5231417,2858.9,2857.8,0.03499195]
[1764551900291,0.34675724,2858.5,2857.8,0.03499195]
[1764551900795,0.34675724,2858.7,2857.8,0.03499195]
[1764551900998,0.34675724,2858.7,2857.7,7.94701393]
[1764551900999,0.1806,2857.9,2857.6,3.49941797]
[1764551901188,0.57275724,2858.5,2857.7,0.03499317]
[1764551901384,0.57275724,2858.5,2857.4,6.99937004]
[1764551901385,0.34675724,2858.0,2857.4,6.99937004]
[1764551901571,0.34675724,2858.0,2857.4,3.49968502]
[1764551901779,0.1806,2857.9,2857.4,3.49968502]
[1764551901997,0.1806,2857.9,2857.5,0.03499562]
[1764551902198,1.07235135,2858.6,2857.6,0.70343657]
[1764551902513,0.34675724,2858.6,2857.7,0.26099317]
[1764551902687,0.226,2859.1,2857.8,3.966255]
[1764551902889,0.34675724,2859.0,2858.0,6.99790062]
[1764551903088,0.34675724,2859.0,2858.1,0.26098827]
[1764551903496,0.4775,2859.2,2858.1,0.226]
[1764551903497,0.4663,2858.8,2858.1,0.226]
[1764551903684,0.81305724,2858.8,2858.1,0.226]
[1764551904177,0.81305724,2858.8,2858.2,0.03498705]
[1764551905119,0.1806,2858.9,2858.3,6.99716614]